fUSD/lending_fUSD_20240724
["ID","MTS","AMOUNT","RATE_DAILY","PERIOD"]
[333079705,1721845846168,-1322.85000005,0.000105,2]
[333079706,1721845846306,-676069.82310681,0.000105,2]
[333079710,1721845896728,561.02,8.219e-05,2]
[333079711,1721845947394,-2194.510843,9.66e-05,2]
[333079712,1721845947419,-157.3840806,9.709e-05,2]
[333079713,1721845947442,-1846.6455,9.862e-05,2]
[333079714,1721845947464,-300.0,9.961e-05,2]
[333079715,1721845947487,-300.0,9.961e-05,2]
[333079716,1721845947512,-3217.08735342,9.962e-05,2]
[333079717,1721845947534,-1195.0,9.962e-05,2]
[333079718,1721845947557,-500.0,0.0001,2]
[333079719,1721845947580,-289.37222298,0.0001,2]
[333079720,1721845948237,-210.62777702,0.0001,2]
[333079721,1721845948261,-500.0,0.0001,2]
[333079722,1721845948286,-500.0,0.0001,2]
[333079723,1721845948311,-500.0,0.0001,2]
[333079724,1721845948335,-500.0,0.0001,2]
[333079725,1721845948358,-500.0,0.0001,2]
[333079726,1721845948381,-330.08,0.0001,2]
[333079727,1721845948406,-500.0,0.0001,2]
[333079728,1721845948429,-500.0,0.0001,2]
[333079729,1721845948453,-500.0,0.0001,2]
[333079730,1721845948476,-524.34,0.0001,2]
[333079731,1721845948499,-153.78556041,0.00010088,2]
[333079732,1721845948521,-3297.87148901,0.000104,2]
[333079733,1721845948543,-829.38072415,0.000104,2]
[333079734,1721845948878,-561.02,0.00010473,2]
[333079735,1721845948903,-92.89444941,0.000105,2]
[333079736,1721845948971,-10000.0,0.000105,2]
[333079737,1721845949182,-10000.0,0.00010497,2]
[333079738,1721845950026,-10000.0,0.00010497,2]
[333079739,1721845950460,-1542.67987057,0.00010497,2]
[333079740,1721845950484,-8457.32012943,0.000105,2]
[333079741,1721845950899,-10000.0,0.000105,2]
[333079742,1721845951327,-10000.0,0.000105,2]
[333079743,1721845951750,-10000.0,0.000105,2]
[333079744,1721845952191,-10000.0,0.000105,2]
[333079745,1721845952993,-10000.0,0.000105,2]
[333079746,1721845960382,-2104.04570616,9.709e-05,2]
[333079747,1721845960410,-4050.51739384,0.000105,2]
[333079749,1721846118510,150.0,0.000136,120]
[333079750,1721846280171,160.39,8.219e-05,2]
[333079752,1721846343094,110184.78064718,8.219e-05,2]
[333079753,1721846344355,556.92932139,8.219e-05,2]
[333079754,1721846348557,658.61776738,8.219e-05,2]
[333079755,1721846355110,202.4621365,8.219e-05,2]
[333079756,1721846356667,155.19192704,8.219e-05,2]
[333079757,1721846417512,191.83,7.259e-05,2]
[333079758,1721846470092,200.0,9.06e-05,2]
[333079759,1721846600441,160.0,9.06e-05,2]
[333079760,1721846602886,23900.0,9.009e-05,2]
[333079761,1721846624074,560.5,8.219e-05,2]
[333079762,1721846670801,797.34,9.035e-05,2]
[333079763,1721846707962,250.0,9.04e-05,2]
[333079764,1721846713168,255.2,9.043e-05,2]
[333079765,1721846724509,1057.31,9.027e-05,2]
[333079768,1721846790230,500.0,9.035e-05,2]
[333079769,1721846825741,160.39,8.219e-05,2]
[333079789,1721846847494,1573.16,9.043e-05,2]
[333079827,1721847032156,-2818.399724,9.077e-05,2]
[333079838,1721847032254,-104.440276,9.077e-05,2]
[333079839,1721847032264,-250.0,9.078e-05,2]
[333079841,1721847032274,-371.57261418,9.086e-05,2]
[333079891,1721847032650,-2.503e-05,9.086e-05,2]
[333079894,1721847032661,-128.42736079,9.086e-05,2]
[333079897,1721847032671,-903.16256868,9.133e-05,2]
[333079903,1721847032692,-336.42743132,9.133e-05,2]
[333079905,1721847032702,-150.98429648,9.417e-05,2]
[333079907,1721847032712,-150.0,9.444e-05,2]
[333079909,1721847032721,-1616.77,9.602e-05,2]
[333079911,1721847032732,-150.0,9.671e-05,2]
[333079913,1721847032741,-300.0,9.686e-05,2]
[333079915,1721847032754,-300.0,9.686e-05,2]
[333079917,1721847032763,-2449.25,9.687e-05,2]
[333079919,1721847032773,-10921.8,9.687e-05,2]
[333079921,1721847032782,-499.99,9.754e-05,2]
[333079923,1721847032792,-9241.1473,9.762e-05,2]
[333079925,1721847032802,-156.4224922,9.796e-05,2]
[333079927,1721847032811,-168.90477695,9.87e-05,2]
[333079929,1721847032821,-840.0,9.917e-05,2]
[333079931,1721847032832,-311.6,9.984e-05,2]
[333079933,1721847032842,-311.6,9.986e-05,2]
[333079935,1721847032852,-311.6,9.989e-05,2]
[333079936,1721847032861,-311.6,9.992e-05,2]
[333079938,1721847032871,-311.6,9.994e-05,2]
[333079940,1721847032881,-311.6,9.997e-05,2]
[333079942,1721847032890,-311.6,9.999e-05,2]
[333079944,1721847032900,-300.10326617,0.0001,2]
[333079946,1721847032909,-1049.12485799,0.0001,2]
[333079948,1721847032918,-412.45599061,0.0001,2]
[333079950,1721847032927,-150.0,0.0001,3]
[333079952,1721847032937,-311.6,0.00010002,2]
[333079954,1721847032947,-311.6,0.00010005,2]
[333079956,1721847032956,-311.6,0.00010007,2]
[333079958,1721847032967,-311.6,0.0001001,2]
[333079960,1721847032977,-311.6,0.00010013,2]
[333079961,1721847032987,-311.6,0.00010015,2]
[333079962,1721847032997,-311.6,0.00010018,2]
[333079963,1721847033007,-311.6,0.00010021,2]
[333079964,1721847033016,-311.6,0.00010023,2]
[333079965,1721847033026,-311.6,0.00010026,2]
[333079966,1721847033035,-311.6,0.00010028,2]
[333079967,1721847033045,-311.6,0.00010031,2]
[333079968,1721847033055,-311.6,0.00010034,2]
[333079969,1721847033064,-156.4224922,0.00010045,2]
[333079970,1721847033074,-150.0,0.00010192,2]
[333079971,1721847033084,-160.0,0.00010193,2]
[333079972,1721847033093,-157.55671503,0.00010297,2]
[333079973,1721847033102,-157.55671503,0.00010346,2]
[333079974,1721847033111,-151.277,0.00010366,2]
[333079975,1721847033121,-173.05830402,0.000104,2]
[333079976,1721847033130,-31119.31436201,0.000104,2]
[333079977,1721847033142,-2440.18563799,0.000104,2]
[333079978,1721847033152,-1407.7993,0.000104,2]
[333079979,1721847033162,-1000.0,0.000104,2]
[333079980,1721847033171,-177.13138484,0.000104,2]
[333079981,1721847033181,-2198.58099268,0.000104,2]
[333079982,1721847033190,-284.09180642,0.000104,2]
[333079983,1721847033200,-560.5,0.00010424,2]
[333079984,1721847033209,-166.66666667,0.0001044,2]
[333079985,1721847033219,-161.4211402,0.00010469,2]
[333079986,1721847033228,-33580.74881455,0.000105,2]
[333079987,1721847033240,-769.5027456,0.000105,2]
[333080001,1721847038104,-495.32106145,0.000105,2]
[333080004,1721847038116,-742.53890502,0.000105,2]
[333080005,1721847038127,-277.33088082,0.000105,2]
[333080013,1721847038200,-3431.04959581,0.000105,2]
[333080019,1721847038295,-17002.9912,0.000105,2]
[333080020,1721847038306,-8678.30116329,0.000105,2]
[333080021,1721847038318,-772.35692078,0.000105,2]
[333080022,1721847038329,-680.0683345,0.000105,2]
[333080023,1721847038341,-677.17556686,0.000105,2]
[333080024,1721847038390,-1935.27881152,0.000105,2]
[333080025,1721847038402,-560.74056315,0.000105,2]
[333080026,1721847038413,-1340.5412717,0.000105,2]
[333080027,1721847038424,-667.95596515,0.000105,2]
[333080028,1721847038436,-615.59910799,0.000105,2]
[333080029,1721847038447,-999.52514,0.000105,2]
[333080235,1721847040274,-19258.45448065,0.000105,2]
[333080237,1721847040286,-727.6694027,0.000105,2]
[333080597,1721847044238,-426260.84993469,0.000105,2]
[333080622,1721847044376,-800.24824831,0.000105,2]
[333080626,1721847044388,-254.25,0.000105,2]
[333080629,1721847044400,-39212.85223734,0.000105,2]
[333080633,1721847044412,-659.4942767,0.000105,2]
[333080637,1721847044427,-549.33298182,0.000105,2]
[333080644,1721847044469,-1554.5019207,0.000105,2]
[333080649,1721847044480,-1836.9684,0.000105,2]
[333080653,1721847044492,-661.85894513,0.000105,2]
[333080655,1721847044506,-606.25768501,0.000105,2]
[333080668,1721847044594,-300.0,0.00010447,2]
[333080670,1721847044603,-332.52348141,0.000105,2]
[333080672,1721847044614,-5993.33999436,0.000105,2]
[333080674,1721847044627,-378655.49902348,0.000105,2]
[333080676,1721847044638,-494.33920324,0.000105,2]
[333080679,1721847044649,-695.55524684,0.000105,2]
[333080682,1721847044660,-683.41176415,0.000105,2]
[333080685,1721847044671,-659.4850173,0.000105,2]
[333080687,1721847044682,-331.161,0.000105,2]
[333080689,1721847044693,-24935.22661887,0.000105,2]
[333080691,1721847044707,-696.37281377,0.000105,2]
[333080694,1721847044718,-675.67832626,0.000105,2]
[333080697,1721847044745,-296.18044634,0.000105,2]
[333080706,1721847044815,-735.84618587,0.000105,2]
[333080708,1721847044827,-1625.7938459,0.000105,2]
[333080710,1721847044840,-1163.86674595,0.000105,2]
[333080712,1721847044851,-697.39124285,0.000105,2]
[333080717,1721847044889,-270.87172046,0.000105,2]
[333080720,1721847044908,-895.50000005,0.000105,2]
[333080722,1721847044919,-9022.73171167,0.000105,2]
[333080724,1721847044931,-3011.11839948,0.000105,2]
[333081004,1721847048051,-302.15358042,0.000104,2]
[333081007,1721847048064,-909.11081958,0.000104,2]
[333081009,1721847048074,-2271.86786122,0.000105,2]
[333081011,1721847048086,-540.43257721,0.000105,2]
[333081013,1721847048099,-753.03033288,0.000105,2]
[333081019,1721847048602,-1064.7,0.000105,2]
[333081023,1721847048708,-1798.94092801,0.000105,2]
[333081026,1721847048720,-683.78399681,0.000105,2]
[333081027,1721847048731,-781.82236727,0.000105,2]
[333081029,1721847048742,-7000.0,0.000105,2]
[333081034,1721847048783,-679.86778279,0.000105,2]
[333081038,1721847048813,-1653.15195,0.000105,2]
[333081041,1721847048824,-2733.97298494,0.000105,2]
[333081209,1721847346197,504.45,8.219e-05,2]
[333081211,1721847871005,479.22,8.219e-05,2]
[333081242,1721848233833,-151.45631594,9.435e-05,2]
[333081243,1721848233842,-385.0,9.443e-05,2]
[333081244,1721848233852,-167.72662324,9.444e-05,2]
[333081245,1721848233861,-265.33169629,9.444e-05,2]
[333081246,1721848233872,-213.15360546,9.444e-05,2]
[333081247,1721848233882,-261.27109595,9.444e-05,2]
[333081248,1721848233894,-211.14306031,9.444e-05,2]
[333081249,1721848233903,-250.0,9.525e-05,2]
[333081250,1721848233913,-500.0,9.525e-05,2]
[333081251,1721848233926,-157.55671503,9.538e-05,2]
[333081252,1721848233937,-155.39218712,9.549e-05,2]
[333081253,1721848233947,-300.0,9.554e-05,2]
[333081254,1721848233961,-3292.93660837,9.555e-05,2]
[333081255,1721848233974,-1504.68339163,9.555e-05,2]
[333081256,1721848233983,-23900.0,9.571e-05,2]
[333081257,1721848233993,-157.55671503,9.629e-05,2]
[333081258,1721848234002,-1000.0,9.797e-05,2]
[333081259,1721848234012,-156.42249221,9.805e-05,2]
[333081260,1721848234021,-1255.87355409,9.962e-05,2]
[333081261,1721848234030,-499.99,9.967e-05,2]
[333081262,1721848234042,-652.74964097,0.0001,2]
[333081263,1721848234051,-156.42249221,0.00010352,2]
[333081264,1721848234060,-1000.0,0.000104,2]
[333081266,1721848234070,-2364.5869,0.000104,2]
[333081268,1721848234079,-174.95524457,0.000104,2]
[333081269,1721848234089,-1000.0,0.000104,2]
[333081270,1721848234098,-1000.0,0.000104,2]
[333081271,1721848234107,-1000.0,0.000104,2]
[333081272,1721848234116,-1000.0,0.000104,2]
[333081273,1721848234125,-1000.0,0.000104,2]
[333081274,1721848234134,-1000.0,0.000104,2]
[333081275,1721848234144,-1000.0,0.000104,2]
[333081276,1721848234153,-1000.0,0.000104,3]
[333081277,1721848234162,-1000.0,0.000104,3]
[333081278,1721848234173,-1000.0,0.000104,3]
[333081279,1721848234183,-846.0,0.000104,2]
[333081280,1721848234193,-1000.0,0.000104,2]
[333081281,1721848234203,-1000.0,0.000104,2]
[333081282,1721848234212,-1000.0,0.000104,2]
[333081283,1721848234221,-1000.0,0.000104,2]
[333081284,1721848234231,-1000.0,0.000104,3]
[333081285,1721848234240,-1000.0,0.000104,3]
[333081286,1721848234250,-1000.0,0.000104,3]
[333081287,1721848234259,-1000.0,0.000104,2]
[333081288,1721848234269,-1000.0,0.000104,2]
[333081289,1721848234279,-1000.0,0.000104,2]
[333081290,1721848234288,-1000.0,0.000104,2]
[333081291,1721848234298,-893.2677,0.000104,2]
[333081292,1721848234307,-4111.38841208,0.000104,2]
[333081293,1721848234316,-151.78567145,0.00010412,2]
[333081294,1721848234326,-479.22,0.00010455,2]
[333081295,1721848234335,-615886.16860948,0.000105,2]
[333081296,1721848234360,-2852.80510775,0.000105,2]
[333081297,1721848234371,-551.29288503,0.000105,2]
[333081298,1721848234430,-1205.48616,0.000105,2]
[333081299,1721848234442,-3302.69003999,0.000105,2]
[333081300,1721848234453,-582.92504737,0.000105,2]
[333081301,1721848234464,-1855.80349116,0.000105,2]
[333081302,1721848234476,-5723.9554761,0.000105,2]
[333081303,1721848234487,-2323.0117673,0.000105,2]
[333081306,1721848239196,-189.39453762,0.000104,2]
[333081307,1721848239206,-2804.88173723,0.000105,2]
[333081308,1721848239217,-40207.88057497,0.000105,2]
[333081309,1721848239342,-345.0,0.000105,2]
[333081310,1721848239355,-781.52115218,0.000105,2]
[333081311,1721848239457,-1465253.40803916,0.000105,2]
[333081312,1721848239490,-1908.71029907,0.000105,2]
[333081313,1721848239501,-32992.00000002,0.000105,2]
[333081393,1721848240475,-1833.3127,0.000105,2]
[333081406,1721848240596,-891.0999999,0.000105,2]
[333081409,1721848240609,-2330.6805165,0.000105,2]
[333081422,1721848240735,-19794.0,0.000105,2]
[333081705,1721848243570,-1321.32,0.000105,2]
[333081729,1721848243793,-9076.92143445,0.000105,2]
[333081732,1721848243805,-10816.61358908,0.000105,2]
[333081921,1721848246431,-933.17494973,0.000105,2]
[333081922,1721848246443,-538.04479009,0.000105,2]
[333081923,1721848246454,-323.60861225,0.000105,2]
[333081924,1721848246535,-694.14833885,0.000105,2]
[333081925,1721848246546,-5024.34936192,0.000105,2]
[333081926,1721848246634,-366.407,0.000105,2]
[333081927,1721848247178,-4892.85490588,0.000105,2]
[333081933,1721848569303,453.72,8.219e-05,2]
[333081934,1721848617303,220.12459623,8.219e-05,2]
[333081938,1721849114996,431.03,8.219e-05,2]
[333081940,1721849155132,2862.14411947,6.94e-05,2]
[333081960,1721849261191,947.25112385,8.412e-05,2]
[333081984,1721849433350,-500.0,9.26e-05,2]
[333081985,1721849433360,-300.0,9.379e-05,2]
[333081986,1721849433370,-204.42892586,9.38e-05,2]
[333081987,1721849433386,-23695.57107414,9.38e-05,2]
[333081988,1721849433396,-453.99349827,9.38e-05,2]
[333081989,1721849433406,-166.66666667,9.489e-05,2]
[333081990,1721849433417,-151.45631594,9.526e-05,2]
[333081991,1721849433427,-250.0,9.601e-05,2]
[333081992,1721849433438,-1000.0,9.676e-05,2]
[333081993,1721849433448,-15585.4888,9.805e-05,2]
[333081994,1721849433459,-150.2406707,9.828e-05,2]
[333081995,1721849433469,-425.44,9.878e-05,2]
[333081997,1721849433478,-13155.77,9.895e-05,2]
[333081999,1721849433488,-4682.4950521,0.0001,2]
[333082001,1721849433498,-6431.94610793,0.0001,2]
[333082003,1721849433508,-29999.99,0.0001006,2]
[333082005,1721849433518,-19999.99,0.0001006,2]
[333082006,1721849433528,-151.45631594,0.00010087,2]
[333082007,1721849433537,-157.55671503,0.00010196,2]
[333082008,1721849433547,-156.42249221,0.00010233,2]
[333082009,1721849433557,-499.99,0.00010296,2]
[333082010,1721849433567,-156.42249221,0.00010306,2]
[333082011,1721849433576,-420.0,0.00010317,2]
[333082012,1721849433587,-1000.0,0.000104,2]
[333082013,1721849433598,-1559.971896,0.000104,2]
[333082014,1721849433608,-1345.4023,0.000104,2]
[333082015,1721849433618,-348.7569,0.000104,2]
[333082016,1721849433628,-12133.0553,0.000104,2]
[333082017,1721849433638,-447.8963,0.000104,2]
[333082018,1721849433648,-170.5948962,0.000104,2]
[333082019,1721849433658,-3355.55,0.000104,2]
[333082020,1721849433668,-293.64006704,0.000104,2]
[333082021,1721849433679,-3000.0,0.000104,2]
[333082022,1721849433689,-1465.72066178,0.000104,2]
[333082023,1721849433700,-253.432325,0.000104,2]
[333082024,1721849433711,-537.68774118,0.000104,2]
[333082025,1721849433720,-189.3945376,0.000104,2]
[333082026,1721849433731,-321.44547856,0.000104,2]
[333082027,1721849433742,-431.03,0.00010452,2]
[333082028,1721849433752,-155.96354806,0.00010489,2]
[333082029,1721849433762,-1216.37287104,0.00010497,2]
[333082030,1721849433772,-1504.47847447,0.00010499,2]
[333082031,1721849433782,-3098.43401998,0.000105,2]
[333082032,1721849433794,-58771.25034392,0.000105,2]
[333082033,1721849433806,-1270399.93652727,0.000105,2]
[333082034,1721849433819,-660.55,0.000105,2]
[333082035,1721849433835,-2367.38584379,0.000105,2]
[333082036,1721849433852,-6550.13639827,0.000105,2]
[333082037,1721849433865,-853.850446,0.000105,2]
[333082038,1721849433878,-786.87675746,0.000105,2]
[333082039,1721849433890,-718.42740746,0.000105,2]
[333082049,1721849437763,-2647.48,0.000105,2]
[333082050,1721849437775,-1954.87549614,0.000105,2]
[333082214,1721849439701,-1963.13817654,0.000105,2]
[333082217,1721849439713,-1019.71499979,0.000105,2]
[333082260,1721849440121,-2915.16210714,0.000105,2]
[333082506,1721849442520,-833.87987711,0.000105,2]
[333082524,1721849442674,-701.33067573,0.000105,2]
[333082527,1721849442687,-26566.25471173,0.000105,2]
[333082531,1721849442724,-694.5375725,0.000105,2]
[333082534,1721849442735,-1279.97005618,0.000105,2]
[333082536,1721849442746,-3939.92439593,0.000105,2]
[333082538,1721849442757,-3147.31597839,0.000105,2]
[333082540,1721849442768,-1464.06406546,0.000105,2]
[333082542,1721849442780,-374.72962927,0.000105,2]
[333082544,1721849442792,-935.898057,0.000105,2]
[333082548,1721849442818,-448.95942964,0.000105,2]
[333082554,1721849442863,-4616.80177371,0.000105,2]
[333082809,1721849445523,-623.93,0.000105,2]
[333082841,1721849445921,-2784.40376051,0.000105,2]
[333082842,1721849445932,-734.87664257,0.000105,2]
[333082843,1721849445944,-810.7547,0.000105,2]
[333082844,1721849445955,-660.32229313,0.000105,2]
[333082845,1721849445968,-2248.93079826,0.000105,2]
[333082846,1721849447612,-414.49,0.000105,2]
[333082847,1721849447624,-412.189652,0.000105,2]
[333082848,1721849447636,-30497.58227838,0.000105,2]
[333082867,1721849831117,387.92,8.219e-05,2]
[333082869,1721850362991,368.52,8.219e-05,2]
[333082913,1721850631831,-157.55671503,9.328e-05,2]
[333082914,1721850631841,-300.0,9.509e-05,2]
[333082915,1721850631851,-6488.24318255,9.51e-05,2]
[333082926,1721850637734,-2000.0,9.51e-05,2]
[333082927,1721850637785,-402.55852411,9.51e-05,2]
[333082928,1721850637892,-435.35854429,9.51e-05,2]
[333082929,1721850637905,-615.93987345,9.51e-05,2]
[333082930,1721850637918,-664.7658,9.51e-05,2]
[333083141,1721850639945,-13293.1340756,9.51e-05,2]
[333083143,1721850639955,-250.0,9.514e-05,2]
[333083145,1721850639965,-500.0,9.539e-05,2]
[333083147,1721850639974,-156.42249221,9.545e-05,2]
[333083149,1721850639983,-1000.0,9.553e-05,2]
[333083151,1721850639993,-157.55671503,9.668e-05,2]
[333083153,1721850640002,-166.66666668,9.798e-05,2]
[333083154,1721850640011,-150.0,0.00010001,2]
[333083157,1721850640021,-150.0,0.00010001,2]
[333083159,1721850640031,-150.0,0.00010001,2]
[333083161,1721850640040,-3589.24,0.00010001,2]
[333083162,1721850640049,-762.54,0.00010055,2]
[333083164,1721850640059,-499.99,0.0001016,2]
[333083167,1721850640069,-150.0,0.00010192,2]
[333083169,1721850640079,-301.66,0.00010192,2]
[333083170,1721850640088,-330.56,0.00010192,2]
[333083172,1721850640097,-665.34,0.00010192,2]
[333083174,1721850640107,-339.19,0.00010192,2]
[333083176,1721850640117,-286.7,0.00010192,2]
[333083178,1721850640126,-150.0,0.00010192,2]
[333083180,1721850640136,-150.0,0.00010192,2]
[333083182,1721850640145,-150.0,0.00010192,2]
[333083184,1721850640156,-150.0,0.00010192,2]
[333083187,1721850640166,-155.0,0.00010196,2]
[333083188,1721850640175,-161.4211402,0.00010243,2]
[333083190,1721850640184,-155.96354806,0.00010256,2]
[333083192,1721850640194,-2070.0,0.00010343,2]
[333083195,1721850640204,-170.59489617,0.000104,2]
[333083197,1721850640213,-3000.0,0.000104,2]
[333083199,1721850640224,-2759.5880438,0.000104,2]
[333083201,1721850640235,-3470.13415581,0.000104,2]
[333083204,1721850640255,-800.20287182,0.000104,2]
[333083482,1721850642918,-708.18,0.000104,2]
[333083485,1721850642939,-7239.75356071,0.000104,2]
[333083493,1721850643001,-1523.26876786,0.000104,2]
[333083495,1721850643010,-189.3945376,0.000104,2]
[333083497,1721850643020,-3481.2333,0.000104,2]
[333083499,1721850643029,-358.45849412,0.000104,2]
[333083501,1721850643039,-977.14710786,0.000104,2]
[333083503,1721850643048,-157.55671503,0.00010425,2]
[333083505,1721850643058,-368.52,0.00010433,2]
[333083507,1721850643068,-500.0,0.00010447,2]
[333083509,1721850643078,-500.0,0.00010447,2]
[333083511,1721850643088,-500.0,0.00010447,2]
[333083513,1721850643098,-500.0,0.00010447,2]
[333083515,1721850643109,-500.0,0.00010447,2]
[333083517,1721850643119,-500.0,0.00010447,2]
[333083519,1721850643129,-500.0,0.00010447,2]
[333083521,1721850643138,-500.0,0.00010447,2]
[333083522,1721850643148,-623.2736,0.00010447,2]
[333083523,1721850643158,-420.0,0.0001046,2]
[333083524,1721850643167,-6634.06607753,0.00010475,2]
[333083525,1721850643207,-484.96392247,0.00010475,2]
[333083526,1721850643217,-193.04607753,0.00010475,2]
[333083596,1721850645734,-1705.9632867,0.00010475,2]
[333083597,1721850645857,-741.09746142,0.00010475,2]
[333084420,1721850922714,9780.95185327,6.781e-05,7]
[333084421,1721850940412,342.6,8.219e-05,2]
[333084422,1721851043123,2406.6105776,8.219e-05,2]
[333084423,1721851321150,5254.71394742,8.219e-05,2]
[333084427,1721851559342,360.69,8.219e-05,2]
[333084472,1721851832637,-561.51132701,9.149e-05,2]
[333084474,1721851832649,-131.50295828,9.149e-05,2]
[333084476,1721851832659,-500.0,9.411e-05,2]
[333084478,1721851832668,-472.96636989,9.469e-05,2]
[333084481,1721851832679,-2481.20419989,9.469e-05,2]
[333084486,1721851832886,-327.85685687,9.469e-05,2]
[333084487,1721851832897,-10398.04257335,9.469e-05,2]
[333084488,1721851832906,-1000.0,9.492e-05,2]
[333084489,1721851832915,-151.45631594,9.514e-05,2]
[333084490,1721851832924,-1822.72551326,9.557e-05,2]
[333084491,1721851832938,-360.67999992,9.557e-05,2]
[333084492,1721851832949,-1112.73839352,9.557e-05,2]
[333084493,1721851833188,-468.97425277,9.557e-05,2]
[333084494,1721851833200,-816.53184053,9.557e-05,2]
[333084495,1721851833210,-155.96354806,9.568e-05,2]
[333084496,1721851833220,-155.0,9.962e-05,2]
[333084497,1721851833230,-877.91461141,0.0001,2]
[333084498,1721851833242,-277.08538859,0.0001,2]
[333084499,1721851833251,-278.81791418,0.0001,2]
[333084500,1721851833625,-373.93172679,0.0001,2]
[333084501,1721851833635,-265.88,0.00010055,2]
[333084502,1721851833645,-302.37,0.00010192,2]
[333084503,1721851833655,-165.28,0.00010192,2]
[333084504,1721851833665,-150.0,0.00010192,2]
[333084505,1721851833675,-355.75,0.00010192,2]
[333084506,1721851833684,-150.0,0.00010235,2]
[333084507,1721851833694,-150.0,0.00010238,2]
[333084508,1721851833704,-150.0,0.00010277,2]
[333084509,1721851833714,-150.0,0.00010283,2]
[333084510,1721851833724,-150.0,0.00010286,2]
[333084511,1721851833733,-14.15594899,0.00010301,2]
[333084512,1721851833746,-135.84405101,0.00010301,2]
[333084513,1721851833756,-150.0,0.00010355,2]
[333084514,1721851833765,-1000.47836882,0.0001037,2]
[333084515,1721851833776,-1999.52163118,0.0001037,2]
[333084516,1721851833786,-150.0,0.00010394,2]
[333084517,1721851833796,-150.0,0.00010399,2]
[333084518,1721851833806,-1629.7164,0.000104,2]
[333084519,1721851833816,-1000.0,0.000104,2]
[333084520,1721851833826,-1112.8407,0.000104,2]
[333084521,1721851833836,-1192.0183,0.000104,2]
[333084522,1721851833846,-347.947,0.000104,2]
[333084523,1721851833855,-170.59489617,0.000104,2]
[333084524,1721851833866,-6952.37151102,0.000104,2]
[333084525,1721851833875,-238.9723294,0.000104,2]
[333084526,1721851833886,-500.0,0.00010415,2]
[333084527,1721851833896,-500.0,0.00010416,2]
[333084528,1721851833906,-196.83,0.00010434,2]
[333084529,1721851833916,-865.675,0.00010446,2]
[333084530,1721851833926,-360.69,0.00010446,2]
[333084531,1721851833940,-1199.42423403,0.00010475,2]
[333084532,1721851833950,-2000.0,0.00010475,2]
[333084533,1721851833959,-200.0,0.00010475,2]
[333084534,1721851833969,-828.479618,0.00010497,2]
[333084535,1721851833984,-1215.60694881,0.00010499,3]
[333084536,1721851833994,-194.69317521,0.00010499,2]
[333084537,1721851834004,-567.0,0.000105,2]
[333084538,1721851834015,-408137.78458664,0.000105,2]
[333084539,1721851834038,-455624.48128726,0.000105,2]
[333084540,1721851834050,-341.48088377,0.000105,2]
[333084541,1721851834061,-1865.69249295,0.000105,2]
[333084542,1721851834073,-1241.12671162,0.000105,2]
[333084543,1721851834092,-17694.45901045,0.000105,2]
[333084544,1721851834103,-872.67905712,0.000105,2]
[333084545,1721851834114,-1549.74687682,0.000105,2]
[333084546,1721851834130,-4731.55964216,0.000105,2]
[333084547,1721851834143,-3292.58196,0.000105,2]
[333084548,1721851834154,-4638.61667096,0.000105,2]
[333084549,1721851834178,-6558.09753364,0.000105,2]
[333084550,1721851834190,-298.3,0.000105,2]
[333084559,1721851837930,-250.0,9.396e-05,2]
[333084560,1721851837944,-300.0,9.41e-05,2]
[333084561,1721851837955,-64.60712979,0.000105,2]
[333084562,1721851837984,-329.665,0.000105,2]
[333084563,1721851838038,-6274.0,0.000105,2]
[333084564,1721851838050,-1182.23485688,0.000105,2]
[333084565,1721851838062,-33728.28597135,0.000105,2]
[333084566,1721851838092,-3892.57385441,0.000105,2]
[333084567,1721851838147,-658.852336,0.000105,2]